bitfinex/quotes_BTCUSD_20250403
["timestamp","ask_amount","ask_price","bid_price","bid_amount"]
[1743707361976,0.01215,82301.0,82291.0,0.00446027]
[1743707361977,0.255187,82292.0,82291.0,0.00446027]
[1743707362395,1.061564,82292.0,82291.0,0.00446027]
[1743707362531,1.1839194,82292.0,82291.0,0.00446027]
[1743707362730,1.086952,82292.0,82291.0,0.00446027]
[1743707363155,1.039474,82292.0,82291.0,0.00446027]
[1743707363560,0.556862,82292.0,82291.0,0.00446027]
[1743707363758,0.509839,82292.0,82291.0,0.00446027]
[1743707363932,0.403209,82292.0,82291.0,0.00446027]
[1743707364110,0.300987,82292.0,82291.0,0.00446027]
[1743707365741,0.467138,82292.0,82291.0,0.00446027]
[1743707365942,0.300987,82292.0,82291.0,0.00446027]
[1743707366349,0.243036,82292.0,82291.0,0.00446027]
[1743707366578,0.255187,82292.0,82291.0,0.00446027]
[1743707367704,1.05016,82299.0,82298.0,0.243019]
[1743707367904,1.06231,82299.0,82293.0,0.243034]
[1743707368133,0.01215,82299.0,82293.0,0.012151]
[1743707368339,0.243019,82298.0,82295.0,0.243026]
[1743707368536,0.012149,82307.0,82301.0,0.01215]
[1743707368739,0.24301,82301.0,82297.0,0.24302]
[1743707368938,0.25516,82301.0,82295.0,0.01454085]
[1743707369475,0.243013,82300.0,82295.0,0.25756785]
[1743707369699,0.243017,82299.0,82296.0,0.243022]
[1743707369995,0.243019,82299.0,82296.0,0.243025]
[1743707370199,0.243013,82300.0,82297.0,0.243021]
[1743707370432,0.24299,82308.0,82302.0,0.01215]
[1743707370559,0.243002,82304.0,82301.0,0.243009]
[1743707370784,0.242999,82305.0,82301.0,0.255159]
[1743707371016,0.242999,82305.0,82302.0,0.243005]
[1743707371221,0.242995,82306.0,82302.0,0.243006]
[1743707371429,0.24299,82308.0,82304.0,0.242999]
[1743707371767,0.242998,82305.0,82302.0,0.01215]
[1743707371941,0.242995,82306.0,82303.0,0.243004]
[1743707372122,0.242999,82305.0,82302.0,0.255157]
[1743707372324,0.243021,82298.0,82291.0,0.24749727]
[1743707372491,0.243016,82299.0,82294.0,0.01454085]
[1743707372872,0.243028,82295.0,82291.0,0.00446027]
[1743707373010,0.243004,82303.0,82294.0,0.012151]
[1743707373216,0.243019,82298.0,82295.0,0.255176]
[1743707373658,0.243007,82302.0,82295.0,0.255176]
[1743707373804,0.243007,82302.0,82295.0,0.243025]
[1743707373998,0.243023,82297.0,82293.0,0.243031]
[1743707374198,0.243034,82293.0,82291.0,0.00446027]
[1743707374409,0.255187,82292.0,82291.0,0.00446027]
[1743707375108,0.243036,82292.0,82291.0,0.00446027]
[1743707375221,1.93872697,82292.0,82291.0,0.00446027]
[1743707375424,2.03245346,82292.0,82291.0,0.00446027]
[1743707375625,2.00745346,82292.0,82291.0,0.00446027]
[1743707381270,0.93261646,82292.0,82291.0,0.00446027]
[1743707381478,3.17962514,82292.0,82291.0,0.00446027]
[1743707382812,3.05672746,82292.0,82291.0,0.00446027]
[1743707383114,1.91069346,82292.0,82291.0,0.00446027]
[1743707383315,1.26339046,82292.0,82291.0,0.00446027]
[1743707383497,1.24643746,82292.0,82291.0,0.00446027]
[1743707383702,1.11529046,82292.0,82291.0,0.00446027]
[1743707383902,1.10630287,82292.0,82291.0,0.00446027]
[1743707384353,0.96054287,82292.0,82291.0,0.00446027]
[1743707385318,0.7075259,82292.0,82291.0,0.00446027]
[1743707385953,0.8670589,82292.0,82291.0,0.00446027]
[1743707386134,0.8372369,82292.0,82291.0,0.00446027]
[1743707386561,0.7075259,82292.0,82291.0,0.00446027]
[1743707387159,0.8647289,82292.0,82291.0,0.00446027]
[1743707388343,0.7075259,82292.0,82291.0,0.00446027]
[1743707388539,0.8508809,82292.0,82291.0,0.00446027]
[1743707388746,0.7075259,82292.0,82291.0,0.00446027]
[1743707389174,0.8541429,82292.0,82291.0,0.00446027]
[1743707390762,0.7075259,82292.0,82291.0,0.00446027]
[1743707391169,0.8429809,82292.0,82291.0,0.00446027]
[1743707391469,0.7075259,82292.0,82291.0,0.00446027]
[1743707391865,0.8522109,82292.0,82291.0,0.00446027]
[1743707392078,0.7075259,82292.0,82291.0,0.00446027]
[1743707392820,0.8451099,82292.0,82291.0,0.00446027]
[1743707393865,0.96801287,82292.0,82291.0,0.00446027]
[1743707395073,0.97618887,82292.0,82291.0,0.00446027]
[1743707395467,2.44583387,82292.0,82291.0,0.00446027]
[1743707395675,1.47403687,82292.0,82291.0,0.00446027]
[1743707397874,1.32827687,82292.0,82291.0,0.00446027]
[1743707398519,1.24555987,82292.0,82291.0,0.00446027]
[1743707398885,1.36845755,82292.0,82291.0,0.00446027]
[1743707400339,1.29125987,82292.0,82291.0,0.00446027]
[1743707403685,1.24555987,82292.0,82291.0,0.00446027]
[1743707404516,1.1226569,82292.0,82291.0,0.00446027]
[1743707404713,0.9975889,82292.0,82291.0,0.00446027]
[1743707405767,0.355187,82292.0,82291.0,0.00446027]
[1743707405990,0.799452,82292.0,82291.0,0.00446027]
[1743707406999,0.92234968,82292.0,82291.0,0.00446027]
[1743707407202,0.799452,82292.0,82291.0,0.00446027]
[1743707407562,0.556416,82292.0,82291.0,0.00446027]
[1743707407768,1.05044,82295.0,82294.0,0.243031]
[1743707407968,0.243011,82301.0,82294.0,0.26034676]
[1743707408169,0.01215,82302.0,82294.0,0.01731576]
[1743707408358,0.243025,82296.0,82294.0,0.00516476]
[1743707408584,0.243022,82297.0,82294.0,0.00516476]
[1743707408786,0.243025,82296.0,82294.0,0.00516476]
[1743707409194,0.24302,82298.0,82294.0,0.00516476]
[1743707409398,0.01215,82298.0,82294.0,0.00516476]
[1743707409615,0.243022,82297.0,82294.0,0.00516476]
[1743707410343,0.255168,82299.0,82294.0,0.00516476]
[1743707410574,0.243019,82298.0,82294.0,0.243029]
[1743707410705,0.243014,82300.0,82295.0,0.00507482]
[1743707410903,0.243022,82297.0,82295.0,0.00507482]
[1743707411451,0.243025,82296.0,82293.0,0.288433]
[1743707411888,0.255187,82292.0,82291.0,0.00446027]
[1743707413024,0.243036,82292.0,82291.0,0.00446027]
[1743707413296,0.255176,82296.0,82291.0,0.00446027]
[1743707413499,0.243029,82295.0,82291.0,0.24749827]
[1743707413671,0.243025,82296.0,82292.0,0.243034]
[1743707413882,0.243029,82295.0,82291.0,0.00446027]
[1743707414079,0.18806912,82295.0,82291.0,0.00446027]
[1743707414284,0.243022,82298.0,82293.0,0.243031]
[1743707414481,0.243022,82297.0,82292.0,0.243036]
[1743707415221,0.243031,82294.0,82291.0,0.00446027]
[1743707415366,0.243036,82293.0,82291.0,0.00446027]
[1743707415563,0.255185,82293.0,82291.0,0.00446027]
[1743707415796,0.243036,82292.0,82291.0,0.00446027]
[1743707415964,0.243026,82296.0,82291.0,0.00446027]
[1743707416193,0.243028,82295.0,82291.0,0.00446027]
[1743707416392,0.243026,82296.0,82291.0,0.24749927]
[1743707416614,0.243019,82298.0,82291.0,0.00446027]
[1743707416811,0.243019,82298.0,82292.0,0.243036]
[1743707417016,0.243024,82297.0,82292.0,0.243036]
[1743707417298,0.243024,82297.0,82293.0,0.00496668]
[1743707418050,0.243025,82296.0,82293.0,0.00496668]
[1743707418663,0.243028,82295.0,82293.0,0.00496668]
[1743707418932,0.243025,82296.0,82291.0,0.24749827]
[1743707419264,0.243028,82295.0,82291.0,0.00446027]
[1743707419461,0.243025,82296.0,82292.0,0.00496668]
[1743707419862,0.243027,82297.0,82292.0,0.24800068]
[1743707420095,0.243019,82298.0,82293.0,0.243032]
[1743707420318,0.243023,82297.0,82293.0,0.243032]
[1743707420457,0.243016,82300.0,82295.0,0.243027]
[1743707420663,0.243009,82302.0,82294.0,0.243028]
[1743707420664,0.243016,82299.0,82294.0,0.243028]
[1743707420870,0.243024,82297.0,82295.0,0.00496668]
[1743707421066,0.243025,82296.0,82292.0,0.243034]
[1743707421384,0.243024,82297.0,82293.0,0.24799968]
[1743707421981,0.012151,82296.0,82293.0,0.00496668]
[1743707422187,0.243026,82296.0,82291.0,0.24749827]
[1743707422587,0.243026,82296.0,82292.0,0.243036]
[1743707422784,0.243022,82298.0,82293.0,0.243032]
[1743707423050,0.255172,82298.0,82291.0,0.00446027]
[1743707423230,0.24303,82296.0,82291.0,0.24749727]
[1743707423383,0.243028,82295.0,82292.0,0.243036]
[1743707423615,0.243022,82297.0,82293.0,0.243033]
[1743707424196,0.243024,82298.0,82294.0,0.24303]
[1743707424425,0.243022,82297.0,82293.0,0.243033]
[1743707424621,0.243027,82296.0,82292.0,0.243036]
[1743707424839,0.255187,82292.0,82291.0,0.00446027]
[1743707425039,0.243036,82292.0,82291.0,0.00446027]
[1743707425246,0.012151,82292.0,82291.0,0.00446027]
[1743707425441,0.71808997,82292.0,82291.0,0.00446027]
[1743707425722,2.48462397,82292.0,82291.0,0.00446027]
[1743707426103,0.71808997,82292.0,82291.0,0.00446027]
[1743707426382,2.21652597,82292.0,82291.0,0.00446027]
[1743707426743,0.583036,82292.0,82291.0,0.00446027]
[1743707427146,0.595187,82292.0,82291.0,0.00446027]
[1743707427444,0.25518,82295.0,82291.0,0.00446027]
[1743707427643,0.01215,82302.0,82292.0,0.012151]
[1743707427846,0.24302,82298.0,82292.0,0.012151]
[1743707428194,0.243013,82300.0,82293.0,0.243033]
[1743707428397,0.243021,82298.0,82293.0,0.243033]
[1743707428880,0.243017,82299.0,82294.0,0.243028]
[1743707429409,0.243024,82297.0,82291.0,0.25964827]
[1743707429640,0.243024,82297.0,82292.0,0.243034]
[1743707429813,0.24303,82295.0,82291.0,0.00446027]
[1743707430071,0.243034,82293.0,82291.0,0.00446027]
[1743707430241,0.243031,82294.0,82291.0,0.00446027]
[1743707430579,0.243028,82296.0,82291.0,0.24749827]
[1743707430781,0.34,82300.0,82292.0,0.012151]
[1743707430989,0.243017,82299.0,82294.0,0.243029]
[1743707431209,0.34,82300.0,82293.0,0.255184]
[1743707431429,0.34,82300.0,82294.0,0.243031]
[1743707431852,0.243027,82296.0,82292.0,0.01454085]
[1743707432060,0.243034,82293.0,82291.0,0.00446027]
[1743707432260,0.61972,82292.0,82291.0,0.00446027]
[1743707432606,1.08262297,82292.0,82291.0,0.00446027]
[1743707432814,1.12952297,82292.0,82291.0,0.00446027]
[1743707433023,1.25242065,82292.0,82291.0,0.00446027]
[1743707433224,0.243078,82278.0,82259.0,0.25529]
[1743707433448,0.243078,82278.0,82253.0,0.00760033]
[1743707433449,0.255306,82254.0,82253.0,0.00760033]
[1743707433649,0.34,82254.0,82253.0,0.00760033]
[1743707433881,0.34,82254.0,82253.0,0.25075233]
[1743707434056,0.388768,82261.0,82254.0,0.243149]
[1743707434201,0.388768,82261.0,82256.0,0.243142]
[1743707434400,0.388768,82261.0,82254.0,0.012157]
[1743707434401,0.243132,82260.0,82254.0,0.255303]
[1743707434600,0.243132,82260.0,82255.0,0.243145]
[1743707434803,0.38877,82261.0,82255.0,0.255303]
[1743707435060,0.243134,82259.0,82255.0,0.243146]
[1743707435290,0.24359,82260.0,82255.0,0.243146]
[1743707435494,0.24359,82260.0,82238.0,0.243195]
[1743707435495,0.255303,82256.0,82238.0,0.243195]
[1743707435705,0.243161,82251.0,82245.0,0.243174]
[1743707435903,0.012158,82249.0,82235.0,0.01216]
[1743707436107,1.095595,82249.0,82236.0,0.243202]
[1743707436282,0.012158,82245.0,82238.0,0.243195]
[1743707436480,0.92158,82249.0,82231.0,0.243216]
[1743707436481,0.255363,82236.0,82231.0,0.243216]
[1743707436688,0.012161,82229.0,82216.0,0.0461]
[1743707436841,0.24322,82230.0,82223.0,0.243239]
[1743707437047,0.01216,82231.0,82223.0,0.243239]
[1743707437048,0.255377,82231.0,82224.0,0.243237]
[1743707437267,0.243217,82231.0,82225.0,0.243234]
[1743707437499,0.243208,82234.0,82228.0,0.012161]
[1743707437697,0.240628,82233.0,82230.0,0.243219]
[1743707437905,0.240628,82234.0,82230.0,0.00013768]
[1743707438104,0.3305113,82232.0,82230.0,0.00013768]
[1743707438313,0.01216,82231.0,82230.0,0.00013768]
[1743707438652,0.764677,82231.0,82230.0,0.00013768]
[1743707438889,0.520074,82231.0,82230.0,0.00013768]
[1743707440268,0.423336,82231.0,82230.0,0.00013768]
[1743707440694,0.435496,82231.0,82230.0,0.00013768]
[1743707441396,0.88623368,82231.0,82230.0,0.00013768]
[1743707441533,0.775496,82231.0,82230.0,0.00013768]
[1743707443658,0.536296,82231.0,82230.0,0.00013768]
[1743707443870,0.548456,82231.0,82230.0,0.00013768]
[1743707447397,0.791673,82231.0,82230.0,0.00013768]
[1743707447623,0.595377,82231.0,82230.0,0.00013768]
[1743707447800,1.932962,82231.0,82230.0,0.00013768]
[1743707447941,2.078642,82231.0,82230.0,0.00013768]
[1743707448136,2.14002484,82231.0,82230.0,0.00013768]
[1743707448966,2.078642,82231.0,82230.0,0.00013768]
[1743707449372,2.20154497,82231.0,82230.0,0.00013768]
[1743707450962,3.25270497,82231.0,82230.0,0.00013768]
[1743707458348,1.91511997,82231.0,82230.0,0.00013768]
[1743707458544,4.88222897,82231.0,82230.0,0.00013768]
[1743707458733,4.93702265,82231.0,82230.0,0.00013768]
[1743707458934,4.67709265,82231.0,82230.0,0.00013768]
[1743707459393,4.55419497,82231.0,82230.0,0.00013768]
[1743707459606,2.725324,82231.0,82230.0,0.00013768]
[1743707459751,2.579644,82231.0,82230.0,0.00013768]
[1743707460367,2.70254697,82231.0,82230.0,0.00013768]
[1743707461372,2.75164697,82231.0,82230.0,0.00013768]
[1743707461573,2.87454465,82231.0,82230.0,0.00013768]
[1743707461835,2.87954465,82231.0,82230.0,0.00013768]
[1743707462437,0.255498,82192.0,82191.0,0.00380383]
[1743707462636,0.71840097,82192.0,82191.0,0.00388737]
[1743707462844,3.72367497,82192.0,82191.0,0.00388737]
[1743707463041,3.28039997,82192.0,82191.0,0.00388737]
[1743707463281,2.222756,82192.0,82191.0,8.354e-05]
[1743707463405,2.130203,82192.0,82191.0,8.354e-05]
[1743707463808,2.25310597,82192.0,82191.0,8.354e-05]
[1743707465250,2.26544947,82192.0,82191.0,8.354e-05]
[1743707465882,1.6578715,82192.0,82191.0,8.354e-05]
[1743707466869,1.87323733,82192.0,82191.0,8.354e-05]
[1743707467255,1.78077447,82192.0,82191.0,8.354e-05]
[1743707468917,1.78977786,82192.0,82191.0,8.354e-05]
[1743707469323,3.89070186,82192.0,82191.0,8.354e-05]
[1743707469526,2.13550286,82192.0,82191.0,8.354e-05]
[1743707470548,1.2981135,82192.0,82191.0,8.354e-05]
[1743707470938,1.1524335,82192.0,82191.0,8.354e-05]
[1743707471160,1.0960745,82192.0,82191.0,8.354e-05]
[1743707471641,1.1082405,82192.0,82191.0,8.354e-05]
[1743707471890,0.7996585,82192.0,82191.0,8.354e-05]
[1743707472765,0.4533605,82192.0,82191.0,8.354e-05]
[1743707472997,0.4818095,82192.0,82191.0,8.354e-05]
[1743707473217,0.4669515,82192.0,82191.0,0.24341854]
[1743707473475,0.4669515,82192.0,82191.0,0.26297023]
[1743707473723,1.05132,82196.0,82195.0,0.255489]
[1743707473980,1.05168,82219.0,82206.0,0.012164]
[1743707474222,0.243279,82210.0,82204.0,0.012164]
[1743707474465,0.53822,82209.0,82206.0,0.24329]
[1743707474723,0.53822,82209.0,82205.0,0.01950645]
[1743707474724,0.243287,82208.0,82205.0,0.01950645]
[1743707474929,0.012164,82207.0,82202.0,0.01454085]
[1743707475107,0.012165,82203.0,82199.0,0.243311]
[1743707475335,0.012165,82200.0,82196.0,0.05701449]
[1743707475521,0.255468,82202.0,82197.0,0.243315]
[1743707475713,0.243303,82202.0,82198.0,0.243313]
[1743707475865,0.243309,82200.0,82197.0,0.243315]
[1743707476068,0.243309,82200.0,82193.0,0.243328]
[1743707476069,0.243329,82193.0,82189.0,0.0456]
[1743707476277,0.243326,82194.0,82189.0,0.0456]
[1743707476278,0.012165,82198.0,82190.0,0.012166]
[1743707476528,0.012165,82197.0,82190.0,0.012166]
[1743707476727,0.243326,82195.0,82191.0,0.24341754]
[1743707477181,0.243326,82195.0,82192.0,0.243332]
[1743707477382,0.012166,82196.0,82191.0,0.01224954]
[1743707477589,0.255471,82201.0,82196.0,0.012166]
[1743707477791,0.243315,82198.0,82195.0,0.012166]
[1743707478128,0.243315,82198.0,82195.0,0.255489]
[1743707478329,0.243313,82199.0,82194.0,0.012166]
[1743707478550,0.347074,82198.0,82194.0,0.255492]
[1743707478747,0.243317,82198.0,82194.0,0.255492]
[1743707478993,0.243313,82199.0,82195.0,0.243321]
[1743707479269,0.103757,82198.0,82197.0,0.243316]
[1743707479443,0.347064,82201.0,82198.0,0.243314]
[1743707479641,0.103757,82200.0,82197.0,0.243316]
[1743707479850,0.347066,82200.0,82197.0,0.243316]
[1743707480069,0.103757,82199.0,82195.0,0.01454085]
[1743707480271,0.24332,82198.0,82195.0,0.25786285]
[1743707480476,0.243309,82200.0,82198.0,0.243314]
[1743707480649,0.103757,82199.0,82197.0,0.243316]
[1743707480854,0.347066,82200.0,82197.0,0.243316]
[1743707481163,0.103757,82199.0,82197.0,0.243316]
[1743707481569,0.103757,82199.0,82198.0,0.01940738]
[1743707481767,0.103757,82200.0,82198.0,0.01940738]
[1743707482306,0.243311,82199.0,82198.0,0.01940738]
[1743707482467,0.524102,82199.0,82198.0,0.01940738]
[1743707482833,0.24333,82193.0,82190.0,0.01454085]
[1743707483324,0.24333,82193.0,82187.0,0.0472]
[1743707483325,0.243332,82192.0,82187.0,0.0472]
[1743707483525,0.243332,82194.0,82189.0,0.243341]
[1743707483724,0.243332,82194.0,82190.0,0.243338]
[1743707484150,0.24333,82193.0,82189.0,0.243341]
[1743707484645,0.63983736,82192.0,82179.0,0.290468]
[1743707484838,1.2965,82192.0,82182.0,0.012168]
[1743707484994,1.2965,82192.0,82191.0,0.25558454]
[1743707484995,0.34,82192.0,82191.0,0.25558454]
[1743707485603,0.34,82192.0,82191.0,8.354e-05]
[1743707485972,0.34,82192.0,82191.0,0.25558454]
[1743707486175,0.34,82192.0,82191.0,8.354e-05]
[1743707486862,0.34,82192.0,82191.0,0.27012539]
[1743707487079,0.255462,82204.0,82197.0,0.012165]
[1743707487282,0.34,82203.0,82201.0,0.243305]
[1743707487443,0.243294,82205.0,82200.0,0.243308]
[1743707487804,1.05168,82207.0,82203.0,0.2433]
[1743707487979,1.05168,82207.0,82203.0,0.255465]
[1743707488182,0.34,82206.0,82203.0,0.255465]
[1743707488484,0.34,82206.0,82205.0,0.255458]
[1743707488695,0.34,82206.0,82205.0,0.26999885]
[1743707489112,1.05168,82207.0,82206.0,0.255455]
[1743707489270,1.05168,82207.0,82206.0,0.243291]
[1743707489604,1.05168,82207.0,82205.0,0.01454085]
[1743707490376,1.05168,82207.0,82205.0,0.25783285]
[1743707490570,1.05168,82207.0,82205.0,0.01454085]
[1743707490772,1.05168,82207.0,82206.0,0.255455]
[1743707490981,1.05168,82207.0,82206.0,0.26999585]
[1743707491183,0.012162,82223.0,82209.0,0.012164]
[1743707491387,0.243265,82215.0,82209.0,0.243281]
[1743707491640,0.243265,82215.0,82210.0,0.01923181]
[1743707491808,0.243268,82214.0,82210.0,0.01923181]
[1743707492545,0.583265,82215.0,82210.0,0.01923181]
[1743707493241,0.34,82215.0,82210.0,0.26250781]
[1743707493395,0.243251,82220.0,82214.0,0.243267]
[1743707493589,0.583261,82217.0,82211.0,0.243273]
[1743707493787,0.583261,82217.0,82212.0,0.01915424]
[1743707493788,0.34,82215.0,82212.0,0.01915424]
[1743707493990,0.34,82215.0,82210.0,0.01454085]
[1743707494249,0.34,82215.0,82211.0,0.01915424]
[1743707494392,0.34,82215.0,82211.0,0.03369509]
[1743707494393,0.255436,82212.0,82211.0,0.03369509]
[1743707494585,0.243285,82209.0,82203.0,0.243298]
[1743707494838,0.243285,82209.0,82201.0,0.255469]
[1743707494839,0.243285,82208.0,82204.0,0.01915424]
[1743707495012,0.243285,82209.0,82203.0,0.243299]
[1743707495410,0.243287,82208.0,82204.0,0.01915424]
[1743707495611,0.243294,82205.0,82200.0,0.01454085]
[1743707495847,0.243285,82208.0,82202.0,0.01454085]
[1743707496037,0.243285,82208.0,82202.0,0.25784285]
[1743707496354,0.243285,82208.0,82203.0,0.01915424]
[1743707496355,0.243288,82207.0,82203.0,0.01915424]
[1743707496553,0.243285,82208.0,82203.0,0.01915424]
[1743707496912,0.255452,82207.0,82203.0,0.01915424]
[1743707497111,0.243291,82206.0,82203.0,0.01915424]
[1743707497316,0.243288,82207.0,82203.0,0.01915424]
[1743707497544,0.243287,82208.0,82203.0,0.01915424]
[1743707499248,0.243288,82209.0,82203.0,0.01915424]
[1743707499449,0.243279,82210.0,82203.0,0.26245324]
[1743707499851,0.243283,82209.0,82203.0,0.01915424]
[1743707500046,0.243285,82208.0,82203.0,0.01915424]
[1743707500292,0.243279,82211.0,82204.0,0.243296]
[1743707500507,0.24328,82210.0,82203.0,0.26245124]
[1743707500846,0.24327,82214.0,82205.0,0.02670485]
[1743707501035,0.24327,82213.0,82207.0,0.01454085]
[1743707501183,0.34,82216.0,82210.0,0.01454085]
[1743707501931,0.34,82216.0,82207.0,0.243287]
[1743707501932,0.583262,82216.0,82212.0,0.01454085]
[1743707502111,0.243266,82215.0,82212.0,0.01454085]
[1743707502514,0.243266,82215.0,82209.0,0.25782185]
[1743707502691,0.34,82215.0,82214.0,0.01454085]
[1743707502893,0.24326,82217.0,82214.0,0.01454085]
[1743707503096,0.243264,82215.0,82214.0,0.03369509]
[1743707503306,0.012163,82216.0,82206.0,0.048]
[1743707503511,0.243281,82210.0,82204.0,0.01454085]
[1743707503714,0.012163,82213.0,82204.0,0.25783685]
[1743707503715,0.243273,82212.0,82204.0,0.25783685]
[1743707504048,0.255439,82213.0,82204.0,0.25783685]
[1743707504273,0.24328,82210.0,82204.0,0.25783685]
[1743707504626,0.243282,82209.0,82203.0,0.01454085]
[1743707504830,0.24328,82210.0,82203.0,0.01454085]
[1743707505027,0.24328,82210.0,82203.0,0.25783985]
[1743707505237,0.24328,82210.0,82205.0,0.01454085]
[1743707505838,0.012163,82210.0,82204.0,0.01454085]
[1743707506165,0.243287,82208.0,82202.0,0.01454085]
[1743707506300,0.243282,82209.0,82203.0,0.243299]
[1743707506508,0.243269,82214.0,82204.0,0.243294]
[1743707506735,0.243273,82212.0,82206.0,0.243288]
[1743707506935,0.243271,82213.0,82206.0,0.243288]
[1743707506936,0.243271,82213.0,82207.0,0.01454085]
[1743707507144,0.243273,82212.0,82207.0,0.01454085]
[1743707507345,0.243273,82212.0,82206.0,0.25782685]
[1743707507990,0.243266,82216.0,82209.0,0.24328]
[1743707508188,0.243263,82216.0,82210.0,0.243277]
[1743707508389,0.243265,82215.0,82209.0,0.255445]
[1743707508627,0.34,82217.0,82211.0,0.01454085]
[1743707508812,0.34,82217.0,82213.0,0.01454085]
[1743707509017,0.243252,82220.0,82213.0,0.01454085]
[1743707509018,0.34,82227.0,82220.0,0.012162]
[1743707509244,0.34,82227.0,82222.0,0.243238]
[1743707509443,0.35232958,82227.0,82222.0,0.243243]
[1743707509689,0.35232958,82227.0,82221.0,0.255408]
[1743707509871,0.59555858,82227.0,82221.0,0.243246]
[1743707510010,0.35232958,82227.0,82221.0,0.243246]
[1743707510210,0.59556358,82227.0,82221.0,8.354e-05]
[1743707510592,0.34,82225.0,82221.0,8.354e-05]
[1743707510764,0.583243,82222.0,82221.0,8.354e-05]
[1743707511111,0.595405,82222.0,82221.0,8.354e-05]
[1743707512657,0.583243,82222.0,82221.0,8.354e-05]
[1743707513012,0.34,82222.0,82221.0,8.354e-05]
[1743707513216,0.34,82225.0,82221.0,8.354e-05]
[1743707513443,0.34,82225.0,82222.0,0.01909984]
[1743707513640,0.34,82225.0,82221.0,8.354e-05]
[1743707513844,0.34,82225.0,82222.0,0.01909984]
[1743707513845,0.583235,82225.0,82222.0,0.01909984]
[1743707514040,0.34,82225.0,82221.0,8.354e-05]
[1743707514322,0.583235,82225.0,82222.0,0.01909984]
[1743707514683,0.583235,82225.0,82221.0,8.354e-05]
[1743707514915,0.583235,82225.0,82222.0,0.01909984]
[1743707515314,0.583235,82225.0,82221.0,8.354e-05]
[1743707515482,0.34,82223.0,82221.0,8.354e-05]
[1743707516249,0.243243,82222.0,82221.0,8.354e-05]
[1743707516453,0.52969583,82222.0,82221.0,8.354e-05]
[1743707516647,1.0383988,82222.0,82221.0,8.354e-05]
[1743707516972,0.97749597,82222.0,82221.0,8.354e-05]
[1743707517477,0.93169597,82222.0,82221.0,8.354e-05]
[1743707517737,0.722601,82222.0,82221.0,8.354e-05]
[1743707519763,0.84550397,82222.0,82221.0,8.354e-05]
[1743707519934,0.89240397,82222.0,82221.0,8.354e-05]
[1743707520838,0.769501,82222.0,82221.0,8.354e-05]
[1743707521023,0.722601,82222.0,82221.0,8.354e-05]
[1743707521226,0.467196,82222.0,82221.0,8.354e-05]
[1743707521446,0.583243,82222.0,82221.0,8.354e-05]
[1743707521782,0.595405,82222.0,82221.0,8.354e-05]
[1743707522126,0.34,82222.0,82221.0,8.354e-05]
[1743707522387,1.1514,82259.0,82242.0,0.012159]
[1743707522593,0.243173,82246.0,82240.0,0.01454085]
[1743707522794,0.243189,82241.0,82236.0,0.01454085]
[1743707522935,0.012158,82247.0,82238.0,0.01454085]
[1743707523275,0.012158,82245.0,82239.0,0.01896239]
[1743707523418,0.243182,82243.0,82240.0,0.01454085]
[1743707524031,0.243182,82243.0,82242.0,0.01454085]
[1743707524470,0.012158,82244.0,82235.0,0.01454085]
[1743707524652,0.012158,82244.0,82237.0,0.01454085]
[1743707524985,0.243193,82239.0,82237.0,0.01454085]
[1743707525291,0.243199,82237.0,82234.0,0.01454085]
[1743707525462,0.243196,82238.0,82232.0,0.01454085]
[1743707525675,0.243187,82241.0,82230.0,0.00760825]
[1743707525676,0.255377,82231.0,82230.0,0.00760825]
[1743707525876,0.243211,82233.0,82230.0,0.00760825]
[1743707526042,0.243202,82236.0,82230.0,0.00760825]
[1743707526248,0.012157,82252.0,82239.0,0.012159]
[1743707526450,0.34,82247.0,82242.0,0.01454085]
[1743707526835,1.0514,82259.0,82251.0,0.012157]
[1743707526998,1.0514,82259.0,82245.0,0.012158]
[1743707526999,0.34,82254.0,82249.0,0.01454085]
[1743707527166,0.583149,82254.0,82249.0,0.01454085]
[1743707527526,0.34,82254.0,82250.0,0.01886041]
[1743707527727,0.34,82252.0,82250.0,0.01886041]
[1743707528024,0.34045908,82252.0,82250.0,0.01886041]
[1743707528259,0.583158,82251.0,82250.0,0.01886041]
[1743707528449,1.170607,82251.0,82250.0,0.01886041]
[1743707528606,0.012158,82248.0,82242.0,0.01454085]
[1743707528806,0.243174,82246.0,82242.0,0.01454085]
[1743707529139,0.243173,82246.0,82244.0,0.01454085]
[1743707529339,0.243175,82245.0,82243.0,0.01880555]
[1743707529566,0.243195,82239.0,82233.0,0.25774885]
[1743707529767,0.243195,82239.0,82232.0,0.45169577]
[1743707529768,0.243211,82233.0,82232.0,0.00380277]
[1743707530108,0.243214,82232.0,82227.0,0.01454085]
[1743707530312,0.243223,82229.0,82222.0,0.047]
[1743707530509,0.243223,82231.0,82223.0,0.02670285]
[1743707530752,0.243223,82231.0,82226.0,0.243231]
[1743707530965,0.243224,82229.0,82222.0,0.059162]
[1743707531160,0.25538,82231.0,82223.0,0.02670285]
[1743707531369,0.243215,82232.0,82227.0,0.01454085]
[1743707531926,0.243228,82228.0,82223.0,0.01454085]
[1743707532102,0.243199,82237.0,82229.0,0.012161]
[1743707532307,0.24319,82240.0,82233.0,0.243208]
[1743707532440,0.34,82242.0,82235.0,0.01216]
[1743707532640,0.243194,82239.0,82233.0,0.243211]
[1743707532853,0.012159,82241.0,82235.0,0.243202]
[1743707533057,0.243176,82245.0,82239.0,0.24319]
[1743707533285,0.583175,82245.0,82236.0,0.243201]
[1743707533482,0.595333,82245.0,82236.0,0.243201]
[1743707533706,0.243179,82244.0,82235.0,0.01216]
[1743707533947,0.34,82245.0,82240.0,0.24319]
[1743707534272,0.34,82245.0,82243.0,0.24318]
[1743707534486,0.34,82248.0,82241.0,0.01454085]
[1743707534657,0.34,82246.0,82240.0,0.01454085]
[1743707534860,0.24318,82244.0,82240.0,0.01454085]
[1743707535162,0.24318,82244.0,82239.0,0.01454085]
[1743707535298,0.243182,82243.0,82239.0,0.01454085]
[1743707535503,0.243181,82243.0,82237.0,0.25773885]
[1743707535767,0.243196,82239.0,82237.0,0.01454085]
[1743707535961,0.012159,82240.0,82230.0,0.14548]
[1743707536182,0.243201,82237.0,82231.0,0.25775685]
[1743707536320,0.243201,82237.0,82232.0,0.243214]
[1743707536522,0.243201,82237.0,82233.0,0.01454085]